{"text_format":"1","workbook":"xlsx","n_sheets":6,"sheets":["Jug. Stam","Jug. Serie","Jug. Ind","Classt Stam","Classt Serie","Classt Ind."],"not_rendered":{"charts":0,"images":2,"macros":1,"external_links":0,"defined_names":8,"comments":1,"pivot_tables":0},"unopened":[],"bounds":{"document_bytes":16777216,"sheet_cells":100000,"rows_first":2000,"rows_last":500,"rows_between":2000,"halvings":0,"cell_chars":16384,"cell_head_chars":4096},"cells_cut":0,"cells_raw":0,"read":"whole","date_system":"1900"}

{"sheet":"Jug. Stam","index":0,"n_rows":116,"n_cols":29,"rows_kept":116,"cut":false,"hidden":false,"merged":[[12,26,14,26],[12,27,14,27],[12,28,14,28],[11,0,11,17],[13,0,13,17],[1,0,1,17],[2,0,2,17],[3,3,8,10],[4,1,4,2],[5,1,5,2],[6,1,6,2],[7,1,7,2],[12,0,12,17]]}
[]
["RESULTATS CANARIS DE CHANT HARZ"]
["CONCOURS DE LAMBESC du"]
[]
[null,"Juges:"]
[]
[]
[]
[]
[]
[]
["GRAND PRIX D'ELEVAGE"]
[null,null,null,null,null,null,null,null,null,null,null,null,null,null,null,null,null,null,null,null,null,null,null,null,null,null,"DeLiBloc","Total","ClaProv"]
["Classe A01-011-1 STAM"]
["Cage","Stam","Eleveur","Club","Bague","R","G","TE","TP","F","B","GL","T","I","Pts","Harm.","Total","Classt"]
[]
[1,784,"X","OCPA",12,23,22,null,16,16,null,null,null,9,{"$f":"IF(SUM(F17:N17)=0,\"PC\",SUM(F17:N17))","v":86},1,{"$f":"SUM(O17:O20)+P17","v":350},8,null,null,null,null,null,null,null,null,{"$f":"ROW(A17)","v":17},{"$f":"INDIRECT(\"Q\"&AA17)","v":350},{"$f":"RANK(AB17,$AB$17:$AB$41)","v":8}]
[2,null,null,null,10,23,22,null,16,16,null,null,null,9,{"$f":"IF(SUM(F18:N18)=0,\"PC\",SUM(F18:N18))","v":86},null,null,null,null,null,null,null,null,null,null,null,{"$f":"AA17+4","v":21},{"$f":"INDIRECT(\"Q\"&AA18)","v":322},{"$f":"RANK(AB18,$AB$17:$AB$41)","v":12}]
[3,null,null,null,32,23,23,null,17,16,null,null,null,9,88,null,null,null,null,null,null,null,null,null,null,null,{"$f":"AA18+4","v":25},{"$f":"INDIRECT(\"Q\"&AA19)","v":355},6]
[4,null,null,null,6,23,23,null,17,17,null,null,null,9,89,null,null,null,null,null,null,null,null,null,null,null,29,{"$f":"INDIRECT(\"Q\"&AA20)","v":347},9]
[5,223,"Y","OCPA",24,23,22,null,17,17,null,null,null,9,88,null,{"$f":"SUM(O21:O24)+P21","v":322},12,null,null,null,null,null,null,null,null,33,{"$f":"INDIRECT(\"Q\"&AA21)","v":352},7]
[6,null,null,null,43,23,23,null,16,10,null,null,null,8,80,null,null,null,null,null,null,null,null,null,null,null,37,{"$f":"INDIRECT(\"Q\"&AA22)","v":359},5]
[7,null,null,null,72,22,22,null,16,null,null,null,null,4,64,null,null,null,null,null,null,null,null,null,null,null,41,{"$f":"INDIRECT(\"Q\"&AA23)","v":327},10]
[8,null,null,null,29,23,24,null,17,17,null,null,null,9,90,null,null,null,null,null,null,null,null,null,null,null,45,{"$f":"INDIRECT(\"Q\"&AA24)","v":326},11]
[9,223,"Y","OCPA",44,23,23,null,17,17,null,null,null,9,89,3,{"$f":"SUM(O25:O28)+P25","v":355},6,null,null,null,null,null,null,null,null,49,{"$f":"INDIRECT(\"Q\"&AA25)","v":360},3]
[10,null,null,null,6,23,22,null,17,16,null,null,null,9,87,null,null,null,null,null,null,null,null,null,null,null,53,{"$f":"INDIRECT(\"Q\"&AA26)","v":362},1]
[11,null,null,null,27,23,22,null,17,17,null,null,null,9,88,null,null,null,null,null,null,null,null,null,null,null,57,{"$f":"INDIRECT(\"Q\"&AA27)","v":360},3]
[12,null,null,null,23,23,23,null,17,16,null,null,null,9,88,null,null,null,null,null,null,null,null,null,null,null,61,{"$f":"INDIRECT(\"Q\"&AA28)","v":362},1]
[13,223,"Y","OCPA",42,23,22,null,17,16,null,null,null,9,87,null,{"$f":"SUM(O29:O32)+P29","v":347},9,null,null,null,null,null,null,null,null,65,{"$f":"INDIRECT(\"Q\"&AA29)","v":0},13]
[14,null,null,null,48,23,22,null,17,17,null,null,null,9,88,null,null,null,null,null,null,null,null,null,null,null,69,{"$f":"INDIRECT(\"Q\"&AA30)","v":0},13]
[15,null,null,null,37,23,23,null,16,15,null,null,null,9,86,null,null,null,null,null,null,null,null,null,null,null,73,{"$f":"INDIRECT(\"Q\"&AA31)","v":0},13]
[16,null,null,null,38,23,23,null,16,15,null,null,null,9,86,null,null,null,null,null,null,null,null,null,null,null,77,{"$f":"INDIRECT(\"Q\"&AA32)","v":0},13]
[17,747,"M","OCPA",44,23,23,null,16,16,null,null,null,9,87,1,{"$f":"SUM(O33:O36)+P33","v":352},7,null,null,null,null,null,null,null,null,81,{"$f":"INDIRECT(\"Q\"&AA33)","v":0},13]
[18,null,null,null,32,23,23,null,16,15,null,null,1,9,87,null,null,null,null,null,null,null,null,null,null,null,85,{"$f":"INDIRECT(\"Q\"&AA34)","v":0},13]
[19,null,null,null,79,23,24,null,17,16,null,null,null,9,89,null,null,null,null,null,null,null,null,null,null,null,89,{"$f":"INDIRECT(\"Q\"&AA35)","v":0},13]
[20,null,null,null,21,23,22,null,17,17,null,null,null,9,88,null,null,null,null,null,null,null,null,null,null,null,93,{"$f":"INDIRECT(\"Q\"&AA36)","v":0},13]
[21,747,"M","OCPA",37,23,24,null,17,17,null,null,null,9,90,2,{"$f":"SUM(O37:O40)+P37","v":359},5,null,null,null,null,null,null,null,null,97,{"$f":"INDIRECT(\"Q\"&AA37)","v":0},13]
[22,null,null,null,50,23,23,null,17,17,null,null,null,9,89,null,null,null,null,null,null,null,null,null,null,null,101,{"$f":"INDIRECT(\"Q\"&AA38)","v":0},13]
[23,null,null,null,31,23,23,null,17,16,null,null,null,9,88,null,null,null,null,null,null,null,null,null,null,null,{"$f":"AA38+4","v":105},{"$f":"INDIRECT(\"Q\"&AA39)","v":0},13]
[24,null,null,null,33,23,23,null,17,17,null,null,1,9,90,null,null,null,null,null,null,null,null,null,null,null,{"$f":"AA39+4","v":109},{"$f":"INDIRECT(\"Q\"&AA40)","v":0},13]
[25,747,"M","OCPA",28,23,23,null,17,16,null,null,null,9,88,null,{"$f":"SUM(O41:O44)+P41","v":327},10,null,null,null,null,null,null,null,null,{"$f":"AA40+4","v":113},{"$f":"INDIRECT(\"Q\"&AA41)","v":0},13]
[26,null,null,null,67,22,22,null,16,null,null,null,null,4,64]
[27,null,null,null,45,23,22,null,16,16,null,null,null,9,86]
[28,null,null,null,70,23,23,null,17,17,null,null,null,9,89]
[29,767,"N","OCPA",14,23,22,null,16,16,null,null,null,9,86,null,{"$f":"SUM(O45:O48)+P45","v":326},11]
[30,null,null,null,21,23,23,null,16,null,null,null,null,5,67]
[31,null,null,null,7,23,22,null,16,16,null,null,null,9,86]
[32,null,null,null,16,23,23,null,16,16,null,null,null,9,87]
[33,734,"O","OCPA",16,23,23,null,18,18,null,null,null,8,90,2,{"$f":"SUM(O49:O52)+P49","v":360},3]
[34,null,null,null,18,23,23,null,18,17,null,null,null,9,90]
[35,null,null,null,15,23,23,null,17,17,null,null,null,9,89]
[36,null,null,null,40,23,22,null,17,17,null,null,1,9,89]
[37,734,"O","OCPA",37,23,23,null,18,18,null,null,null,8,90,2,{"$f":"SUM(O53:O56)+P53","v":362},2]
[38,null,null,null,11,23,23,null,18,18,null,null,null,8,90]
[39,null,null,null,47,23,23,null,17,18,null,null,null,9,90]
[40,null,null,null,14,23,23,null,18,18,null,null,null,8,90]
[41,744,"P","OCPA",19,23,23,null,17,17,null,null,null,9,89,1,{"$f":"SUM(O57:O60)+P57","v":360},4]
[42,null,null,null,44,24,23,null,18,16,null,null,null,9,90]
[43,null,null,null,11,23,24,null,17,17,null,null,null,9,90]
[44,null,null,null,41,24,25,null,17,18,null,null,null,6,90]
[45,744,"P","OCPA",12,24,24,null,18,18,null,null,null,6,90,2,{"$f":"SUM(O61:O64)+P61","v":362},1]
[46,null,null,null,1,23,24,null,17,17,null,null,null,9,90]
[47,null,null,null,3,23,24,null,18,17,null,null,null,8,90]
[48,null,null,null,9,23,23,null,17,18,null,null,null,9,90]
[49,null,null,null,null,null,null,null,null,null,null,null,null,null,"PC"]
[50,null,null,null,null,null,null,null,null,null,null,null,null,null,"PC"]
[51,null,null,null,null,null,null,null,null,null,null,null,null,null,"PC"]
[52,null,null,null,null,null,null,null,null,null,null,null,null,null,"PC"]
[53,null,null,null,null,null,null,null,null,null,null,null,null,null,"PC",null,{"$f":"SUM(O69:O72)+P69","v":0}]
[54,null,null,null,null,null,null,null,null,null,null,null,null,null,"PC"]
[55,null,null,null,null,null,null,null,null,null,null,null,null,null,"PC"]
[56,null,null,null,null,null,null,null,null,null,null,null,null,null,"PC"]
[57,null,null,null,null,null,null,null,null,null,null,null,null,null,"PC",null,{"$f":"SUM(O73:O76)+P73","v":0}]
[58,null,null,null,null,null,null,null,null,null,null,null,null,null,"PC"]
[59,null,null,null,null,null,null,null,null,null,null,null,null,null,"PC"]
[60,null,null,null,null,null,null,null,null,null,null,null,null,null,"PC"]
[61,null,null,null,null,null,null,null,null,null,null,null,null,null,"PC",null,{"$f":"SUM(O77:O80)+P77","v":0}]
[62,null,null,null,null,null,null,null,null,null,null,null,null,null,"PC",null,{"$f":"SUM(O78:O81)+P78","v":0}]
[63,null,null,null,null,null,null,null,null,null,null,null,null,null,"PC",null,0]
[64,null,null,null,null,null,null,null,null,null,null,null,null,null,"PC",null,0]
[65,null,null,null,null,null,null,null,null,null,null,null,null,null,"PC",null,0]
[66,null,null,null,null,null,null,null,null,null,null,null,null,null,{"$f":"IF(SUM(F82:N82)=0,\"PC\",SUM(F82:N82))","v":"PC"},null,0]
[67,null,null,null,null,null,null,null,null,null,null,null,null,null,"PC",null,0]
[68,null,null,null,null,null,null,null,null,null,null,null,null,null,"PC",null,0]
[69,null,null,null,null,null,null,null,null,null,null,null,null,null,"PC",null,0]
[70,null,null,null,null,null,null,null,null,null,null,null,null,null,"PC",null,0]
[71,null,null,null,null,null,null,null,null,null,null,null,null,null,"PC",null,0]
[72,null,null,null,null,null,null,null,null,null,null,null,null,null,"PC",null,0]
[73,null,null,null,null,null,null,null,null,null,null,null,null,null,"PC",null,0]
[74,null,null,null,null,null,null,null,null,null,null,null,null,null,"PC",null,0]
[75,null,null,null,null,null,null,null,null,null,null,null,null,null,"PC",null,0]
[76,null,null,null,null,null,null,null,null,null,null,null,null,null,"PC",null,0]
[77,null,null,null,null,null,null,null,null,null,null,null,null,null,"PC",null,0]
[78,null,null,null,null,null,null,null,null,null,null,null,null,null,"PC",null,0]
[79,null,null,null,null,null,null,null,null,null,null,null,null,null,"PC",null,0]
[80,null,null,null,null,null,null,null,null,null,null,null,null,null,"PC",null,0]
[81,null,null,null,null,null,null,null,null,null,null,null,null,null,"PC",null,0]
[82,null,null,null,null,null,null,null,null,null,null,null,null,null,"PC",null,0]
[83,null,null,null,null,null,null,null,null,null,null,null,null,null,"PC",null,0]
[84,null,null,null,null,null,null,null,null,null,null,null,null,null,"PC",null,0]
[85,null,null,null,null,null,null,null,null,null,null,null,null,null,"PC",null,0]
[86,null,null,null,null,null,null,null,null,null,null,null,null,null,"PC",null,0]
[87,null,null,null,null,null,null,null,null,null,null,null,null,null,"PC",null,0]
[88,null,null,null,null,null,null,null,null,null,null,null,null,null,"PC",null,0]
[89,null,null,null,null,null,null,null,null,null,null,null,null,null,"PC",null,0]
[90,null,null,null,null,null,null,null,null,null,null,null,null,null,"PC",null,0]
[91,null,null,null,null,null,null,null,null,null,null,null,null,null,"PC",null,0]
[92,null,null,null,null,null,null,null,null,null,null,null,null,null,"PC",null,0]
[93,null,null,null,null,null,null,null,null,null,null,null,null,null,"PC",null,0]
[94,null,null,null,null,null,null,null,null,null,null,null,null,null,"PC",null,0]
[95,null,null,null,null,null,null,null,null,null,null,null,null,null,"PC",null,0]
[96,null,null,null,null,null,null,null,null,null,null,null,null,null,"PC",null,0]
[97,null,null,null,null,null,null,null,null,null,null,null,null,null,"PC",null,0]
[98,null,null,null,null,null,null,null,null,null,null,null,null,null,"PC",null,0]
[99,null,null,null,null,null,null,null,null,null,null,null,null,null,"PC",null,0]
[100,null,null,null,null,null,null,null,null,null,null,null,null,null,"PC",null,0]

{"sheet":"Jug. Serie","index":1,"n_rows":55,"n_cols":18,"rows_kept":55,"cut":false,"hidden":false,"merged":[[1,0,1,17]]}
[]
["Classe A01-015-1 SERIE"]
[]
["Cage","Stam","Eleveur","Club","Bague","R","G","TE","TP","F","B","GL","T","I","Pts",null,"Total","Classt"]
[]
[201,747,"M","OCPA",66,22,22,null,17,17,null,null,1,9,{"$f":"IF(SUM(F6:N6)=0,\"PC\",SUM(F6:N6))","v":88},null,{"$f":"SUM(O6:O7)","v":176}]
[202,null,null,null,69,22,22,null,17,17,null,null,1,9,88]
[203,747,"M","OCPA",54,23,23,null,17,16,null,null,null,9,88,null,{"$f":"SUM(O8:O9)","v":178}]
[204,null,null,null,53,22,22,null,17,17,2,null,1,9,90]
[205,784,"Y","OCPA",20,22,22,null,16,16,null,null,1,9,86,null,{"$f":"SUM(O10:O11)","v":172}]
[206,null,null,null,29,22,22,null,16,16,null,null,1,9,86]
[207,223,"X","OCPA",26,22,22,null,17,16,null,null,null,9,86,null,{"$f":"SUM(O12:O13)","v":172}]
[208,null,null,null,25,22,22,null,17,16,null,null,null,9,86]
[209,273,"R","OCPA",15,22,22,null,17,16,null,null,1,9,87,null,{"$f":"SUM(O14:O15)","v":176}]
[210,null,null,null,16,22,24,null,17,17,null,null,null,9,89]
[211,null,null,null,null,null,null,null,null,null,null,null,null,null,{"$f":"IF(B16=\"\",O16=\"\",IF(SUM(F16:N16)=0,\"PC\",SUM(F16:N16)))","v":0},null,{"$f":"SUM(O16:O17)","v":0}]
[212,null,null,null,null,null,null,null,null,null,null,null,null,null,{"$f":"IF(B16=\"\",O17=\"\",IF(SUM(F17:N17)=0,\"PC\",SUM(F17:N17)))","v":0}]
[213,null,null,null,null,null,null,null,null,null,null,null,null,null,{"$f":"IF(B18=\"\",O18=\"\",IF((F18:N18)=\"\",\"PC\",SUM(F18:N18)))","v":0},null,{"$f":"SUM(O18:O19)","v":0}]
[214,null,null,null,null,null,null,null,null,null,null,null,null,null,{"$f":"IF(B18=\"\",O19=\"\",IF((F19:N19)=\"\",\"PC\",SUM(F19:N19)))","v":0}]
[215,null,null,null,null,null,null,null,null,null,null,null,null,null,{"$f":"IF(B20=\"\",O20=\"\",IF((F20:N20)=\"\",\"PC\",SUM(F20:N20)))","v":0},null,{"$f":"SUM(O20:O21)","v":0}]
[216,null,null,null,null,null,null,null,null,null,null,null,null,null,{"$f":"IF(B20=\"\",O21=\"\",IF((F21:N21)=\"\",\"PC\",SUM(F21:N21)))","v":0}]
[217,null,null,null,null,null,null,null,null,null,null,null,null,null,{"$f":"IF(B22=\"\",O22=\"\",IF((F22:N22)=\"\",\"PC\",SUM(F22:N22)))","v":0},null,{"$f":"SUM(O22:O23)","v":0}]
[218,null,null,null,null,null,null,null,null,null,null,null,null,null,{"$f":"IF(B22=\"\",O23=\"\",IF((F23:N23)=\"\",\"PC\",SUM(F23:N23)))","v":0}]
[219,null,null,null,null,null,null,null,null,null,null,null,null,null,{"$f":"IF(B24=\"\",O24=\"\",IF((F24:N24)=\"\",\"PC\",SUM(F24:N24)))","v":0},null,{"$f":"SUM(O24:O25)","v":0}]
[220,null,null,null,null,null,null,null,null,null,null,null,null,null,{"$f":"IF(B24=\"\",O25=\"\",IF((F25:N25)=\"\",\"PC\",SUM(F25:N25)))","v":0}]
[221,null,null,null,null,null,null,null,null,null,null,null,null,null,{"$f":"IF(B26=\"\",O26=\"\",IF((F26:N26)=\"\",\"PC\",SUM(F26:N26)))","v":0},null,{"$f":"SUM(O26:O27)","v":0}]
[222,null,null,null,null,null,null,null,null,null,null,null,null,null,{"$f":"IF(B26=\"\",O27=\"\",IF((F27:N27)=\"\",\"PC\",SUM(F27:N27)))","v":0}]
[223,null,null,null,null,null,null,null,null,null,null,null,null,null,{"$f":"IF(B28=\"\",O28=\"\",IF((F28:N28)=\"\",\"PC\",SUM(F28:N28)))","v":0},null,{"$f":"SUM(O28:O29)","v":0}]
[224,null,null,null,null,null,null,null,null,null,null,null,null,null,{"$f":"IF(B28=\"\",O29=\"\",IF((F29:N29)=\"\",\"PC\",SUM(F29:N29)))","v":0}]
[225,null,null,null,null,null,null,null,null,null,null,null,null,null,{"$f":"IF(B30=\"\",O30=\"\",IF((F30:N30)=\"\",\"PC\",SUM(F30:N30)))","v":0},null,{"$f":"SUM(O30:O31)","v":0}]
[226,null,null,null,null,null,null,null,null,null,null,null,null,null,{"$f":"IF(B30=\"\",O31=\"\",IF((F31:N31)=\"\",\"PC\",SUM(F31:N31)))","v":0}]
[227,null,null,null,null,null,null,null,null,null,null,null,null,null,{"$f":"IF(B32=\"\",O32=\"\",IF((F32:N32)=\"\",\"PC\",SUM(F32:N32)))","v":0},null,{"$f":"SUM(O32:O33)","v":0}]
[228,null,null,null,null,null,null,null,null,null,null,null,null,null,{"$f":"IF(B32=\"\",O33=\"\",IF((F33:N33)=\"\",\"PC\",SUM(F33:N33)))","v":0}]
[229,null,null,null,null,null,null,null,null,null,null,null,null,null,{"$f":"IF(B34=\"\",O34=\"\",IF((F34:N34)=\"\",\"PC\",SUM(F34:N34)))","v":0},null,{"$f":"SUM(O34:O35)","v":0}]
[230,null,null,null,null,null,null,null,null,null,null,null,null,null,{"$f":"IF(B34=\"\",O35=\"\",IF((F35:N35)=\"\",\"PC\",SUM(F35:N35)))","v":0}]
[231,null,null,null,null,null,null,null,null,null,null,null,null,null,{"$f":"IF(B36=\"\",O36=\"\",IF((F36:N36)=\"\",\"PC\",SUM(F36:N36)))","v":0},null,{"$f":"SUM(O36:O37)","v":0}]
[232,null,null,null,null,null,null,null,null,null,null,null,null,null,{"$f":"IF(B36=\"\",O37=\"\",IF((F37:N37)=\"\",\"PC\",SUM(F37:N37)))","v":0}]
[233,null,null,null,null,null,null,null,null,null,null,null,null,null,{"$f":"IF(B38=\"\",O38=\"\",IF((F38:N38)=\"\",\"PC\",SUM(F38:N38)))","v":0},null,{"$f":"SUM(O38:O39)","v":0}]
[234,null,null,null,null,null,null,null,null,null,null,null,null,null,{"$f":"IF(B38=\"\",O39=\"\",IF((F39:N39)=\"\",\"PC\",SUM(F39:N39)))","v":0}]
[235,null,null,null,null,null,null,null,null,null,null,null,null,null,{"$f":"IF(B40=\"\",O40=\"\",IF((F40:N40)=\"\",\"PC\",SUM(F40:N40)))","v":0},null,{"$f":"SUM(O40:O41)","v":0}]
[236,null,null,null,null,null,null,null,null,null,null,null,null,null,{"$f":"IF(B40=\"\",O41=\"\",IF((F41:N41)=\"\",\"PC\",SUM(F41:N41)))","v":0}]
[237,null,null,null,null,null,null,null,null,null,null,null,null,null,{"$f":"IF(B42=\"\",O42=\"\",IF((F42:N42)=\"\",\"PC\",SUM(F42:N42)))","v":0},null,{"$f":"SUM(O42:O43)","v":0}]
[238,null,null,null,null,null,null,null,null,null,null,null,null,null,{"$f":"IF(B42=\"\",O43=\"\",IF((F43:N43)=\"\",\"PC\",SUM(F43:N43)))","v":0}]
[239,null,null,null,null,null,null,null,null,null,null,null,null,null,{"$f":"IF(B44=\"\",O44=\"\",IF((F44:N44)=\"\",\"PC\",SUM(F44:N44)))","v":0},null,{"$f":"SUM(O44:O45)","v":0}]
[240,null,null,null,null,null,null,null,null,null,null,null,null,null,{"$f":"IF(B44=\"\",O45=\"\",IF((F45:N45)=\"\",\"PC\",SUM(F45:N45)))","v":0}]
[241,null,null,null,null,null,null,null,null,null,null,null,null,null,{"$f":"IF(B46=\"\",O46=\"\",IF((F46:N46)=\"\",\"PC\",SUM(F46:N46)))","v":0},null,{"$f":"SUM(O46:O47)","v":0}]
[242,null,null,null,null,null,null,null,null,null,null,null,null,null,{"$f":"IF(B46=\"\",O47=\"\",IF((F47:N47)=\"\",\"PC\",SUM(F47:N47)))","v":0}]
[243,null,null,null,null,null,null,null,null,null,null,null,null,null,{"$f":"IF(B48=\"\",O48=\"\",IF((F48:N48)=\"\",\"PC\",SUM(F48:N48)))","v":0},null,{"$f":"SUM(O48:O49)","v":0}]
[244,null,null,null,null,null,null,null,null,null,null,null,null,null,{"$f":"IF(B48=\"\",O49=\"\",IF((F49:N49)=\"\",\"PC\",SUM(F49:N49)))","v":0}]
[245,null,null,null,null,null,null,null,null,null,null,null,null,null,{"$f":"IF(B50=\"\",O50=\"\",IF((F50:N50)=\"\",\"PC\",SUM(F50:N50)))","v":0},null,{"$f":"SUM(O50:O51)","v":0}]
[246,null,null,null,null,null,null,null,null,null,null,null,null,null,{"$f":"IF(B50=\"\",O51=\"\",IF((F51:N51)=\"\",\"PC\",SUM(F51:N51)))","v":0}]
[247,null,null,null,null,null,null,null,null,null,null,null,null,null,{"$f":"IF(B52=\"\",O52=\"\",IF((F52:N52)=\"\",\"PC\",SUM(F52:N52)))","v":0},null,{"$f":"SUM(O52:O53)","v":0}]
[248,null,null,null,null,null,null,null,null,null,null,null,null,null,{"$f":"IF(B52=\"\",O53=\"\",IF((F53:N53)=\"\",\"PC\",SUM(F53:N53)))","v":0}]
[249,null,null,null,null,null,null,null,null,null,null,null,null,null,{"$f":"IF(B54=\"\",O54=\"\",IF((F54:N54)=\"\",\"PC\",SUM(F54:N54)))","v":0},null,{"$f":"SUM(O54:O55)","v":0}]
[250,null,null,null,null,null,null,null,null,null,null,null,null,null,{"$f":"IF(B54=\"\",O55=\"\",IF((F55:N55)=\"\",\"PC\",SUM(F55:N55)))","v":0}]

{"sheet":"Jug. Ind","index":2,"n_rows":63,"n_cols":18,"rows_kept":63,"cut":false,"hidden":false,"merged":[[1,0,1,17]]}
[]
["Classe A01-012-1 INDIVIDUEL"]
[]
["Cage","Stam","Eleveur","Club","Bague","R","G","TE","TP","F","B","GL","T","I",null,null,"Total","Classt"]
[]
[301,747,"M","OCPA",63,23,23,null,17,18,null,null,null,9,null,null,{"$f":"IF(B6=\"\",Q6=\"\",IF(SUM(F6:N6)=0,\"PC\",SUM(F6:N6)))","v":90}]
[302,747,"M","OCPA",52,22,22,null,16,16,null,null,1,9,null,null,{"$f":"IF(B7=\"\",Q7=\"\",IF(SUM(F7:N7)=0,\"PC\",SUM(F7:N7)))","v":86}]
[303,747,"M","OCPA",38,22,22,null,16,16,null,null,1,9,null,null,86]
[304,767,"N","OCPA",11,22,22,null,17,16,null,null,1,9,null,null,87]
[305,784,"X","OCPA",2,21,21,null,16,16,null,null,1,9,null,null,84]
[306,784,"X","OCPA",1,21,21,null,16,16,null,null,2,9,null,null,85]
[307,223,"Y","OCPA",61,21,21,null,16,16,null,null,1,9,null,null,84]
[308,223,"Y","OCPA",62,21,22,null,17,17,null,null,1,9,null,null,87]
[309,223,"Y","OCPA",56,null,null,null,null,null,null,null,null,null,null,null,"PC"]
[310,223,"Y","OCPA",55,22,22,null,17,16,null,null,1,9,null,null,87]
[311,223,"Y","OCPA",63,23,22,null,16,null,null,null,1,5,null,null,67]
[312,223,"Y","OCPA",65,23,22,null,17,16,3,null,null,9,null,null,{"$f":"IF(B17=\"\",Q17=\"\",IF(SUM(F17:N17)=0,\"PC\",SUM(F17:N17)))","v":90}]
[313,273,"R","OCPA",4,22,22,null,16,16,null,null,1,9,null,null,86]
[null,null,null,null,null,null,null,null,null,null,null,null,null,null,null,null,{"$f":"IF(B19=\"\",Q19=\"\",IF(SUM(F19:N19)=0,\"PC\",SUM(F19:N19)))","v":0}]
[null,null,null,null,null,null,null,null,null,null,null,null,null,null,null,null,{"$f":"IF(B20=\"\",Q20=\"\",IF(SUM(F20:N20)=0,\"PC\",SUM(F20:N20)))","v":0}]
[null,null,null,null,null,null,null,null,null,null,null,null,null,null,null,null,0]
[null,null,null,null,null,null,null,null,null,null,null,null,null,null,null,null,0]
[null,null,null,null,null,null,null,null,null,null,null,null,null,null,null,null,0]
[null,null,null,null,null,null,null,null,null,null,null,null,null,null,null,null,0]
[null,null,null,null,null,null,null,null,null,null,null,null,null,null,null,null,0]
[null,null,null,null,null,null,null,null,null,null,null,null,null,null,null,null,0]
[null,null,null,null,null,null,null,null,null,null,null,null,null,null,null,null,0]
[null,null,null,null,null,null,null,null,null,null,null,null,null,null,null,null,0]
[null,null,null,null,null,null,null,null,null,null,null,null,null,null,null,null,0]
[null,null,null,null,null,null,null,null,null,null,null,null,null,null,null,null,0]
[null,null,null,null,null,null,null,null,null,null,null,null,null,null,null,null,0]
[null,null,null,null,null,null,null,null,null,null,null,null,null,null,null,null,0]
[null,null,null,null,null,null,null,null,null,null,null,null,null,null,null,null,0]
[null,null,null,null,null,null,null,null,null,null,null,null,null,null,null,null,0]
[null,null,null,null,null,null,null,null,null,null,null,null,null,null,null,null,0]
[null,null,null,null,null,null,null,null,null,null,null,null,null,null,null,null,0]
[null,null,null,null,null,null,null,null,null,null,null,null,null,null,null,null,0]
[null,null,null,null,null,null,null,null,null,null,null,null,null,null,null,null,0]
[null,null,null,null,null,null,null,null,null,null,null,null,null,null,null,null,0]
[null,null,null,null,null,null,null,null,null,null,null,null,null,null,null,null,0]
[null,null,null,null,null,null,null,null,null,null,null,null,null,null,null,null,0]
[null,null,null,null,null,null,null,null,null,null,null,null,null,null,null,null,0]
[null,null,null,null,null,null,null,null,null,null,null,null,null,null,null,null,0]
[null,null,null,null,null,null,null,null,null,null,null,null,null,null,null,null,0]
[null,null,null,null,null,null,null,null,null,null,null,null,null,null,null,null,0]
[null,null,null,null,null,null,null,null,null,null,null,null,null,null,null,null,0]
[null,null,null,null,null,null,null,null,null,null,null,null,null,null,null,null,0]
[null,null,null,null,null,null,null,null,null,null,null,null,null,null,null,null,0]
[null,null,null,null,null,null,null,null,null,null,null,null,null,null,null,null,0]
[null,null,null,null,null,null,null,null,null,null,null,null,null,null,null,null,0]
[null,null,null,null,null,null,null,null,null,null,null,null,null,null,null,null,0]
[null,null,null,null,null,null,null,null,null,null,null,null,null,null,null,null,0]
[null,null,null,null,null,null,null,null,null,null,null,null,null,null,null,null,0]
[null,null,null,null,null,null,null,null,null,null,null,null,null,null,null,null,0]
[null,null,null,null,null,null,null,null,null,null,null,null,null,null,null,null,0]
[null,null,null,null,null,null,null,null,null,null,null,null,null,null,null,null,0]
[null,null,null,null,null,null,null,null,null,null,null,null,null,null,null,null,0]
[null,null,null,null,null,null,null,null,null,null,null,null,null,null,null,null,0]
[null,null,null,null,null,null,null,null,null,null,null,null,null,null,null,null,0]
[null,null,null,null,null,null,null,null,null,null,null,null,null,null,null,null,0]
[null,null,null,null,null,null,null,null,null,null,null,null,null,null,null,null,0]
[null,null,null,null,null,null,null,null,null,null,null,null,null,null,null,null,0]
[null,null,null,null,null,null,null,null,null,null,null,null,null,null,null,null,0]

{"sheet":"Classt Stam","index":3,"n_rows":64,"n_cols":18,"rows_kept":64,"cut":false,"hidden":false,"merged":[[11,0,11,17],[13,0,13,17],[1,0,1,17],[2,0,2,17],[3,3,8,10],[4,1,4,2],[5,1,5,2],[6,1,6,2],[7,1,7,2]]}
[]
["RESULTATS CANARIS DE CHANT HARZ"]
["CONCOURS DE LAMBESC du"]
[]
[null,"Juges:"]
[]
[]
[]
[]
[]
[]
["GRAND PRIX D'ELEVAGE"]
[]
["Classe A01-011-1 STAM"]
[null,null,null,null,null,null,null,null,null,null,null,null,null,null,null,null,null,"Classt"]
[]
[45,744,"P","OCPA",12,24,24,null,18,18,null,null,null,6,90,2,362,"CH"]
[46,null,null,null,1,23,24,null,17,17,null,null,null,9,90]
[47,null,null,null,3,23,24,null,18,17,null,null,null,8,90]
[48,null,null,null,9,23,23,null,17,18,null,null,null,9,90]
[37,734,"O","OCPA",37,23,23,null,18,18,null,null,null,8,90,2,362,"2°"]
[38,null,null,null,11,23,23,null,18,18,null,null,null,8,90]
[39,null,null,null,47,23,23,null,17,18,null,null,null,9,90]
[40,null,null,null,14,23,23,null,18,18,null,null,null,8,90]
[33,734,"O","OCPA",16,23,23,null,18,18,null,null,null,8,90,2,360,"3°"]
[34,null,null,null,18,23,23,null,18,17,null,null,null,9,90]
[35,null,null,null,15,23,23,null,17,17,null,null,null,9,89]
[36,null,null,null,40,23,22,null,17,17,null,null,1,9,89]
[41,744,"P","OCPA",19,23,23,null,17,17,null,null,null,9,89,1,360,"4°"]
[42,null,null,null,44,24,23,null,18,16,null,null,null,9,90]
[43,null,null,null,11,23,24,null,17,17,null,null,null,9,90]
[44,null,null,null,41,24,25,null,17,18,null,null,null,6,90]
[21,747,"M","OCPA",37,23,24,null,17,17,null,null,null,9,90,2,359,"5°"]
[22,null,null,null,50,23,23,null,17,17,null,null,null,9,89]
[23,null,null,null,31,23,23,null,17,16,null,null,null,9,88]
[24,null,null,null,33,23,23,null,17,17,null,null,1,9,90]
[9,223,"Y","OCPA",44,23,23,null,17,17,null,null,null,9,89,3,355,"6°"]
[10,null,null,null,6,23,22,null,17,16,null,null,null,9,87]
[11,null,null,null,27,23,22,null,17,17,null,null,null,9,88]
[12,null,null,null,23,23,23,null,17,16,null,null,null,9,88]
[17,747,"M","OCPA",44,23,23,null,16,16,null,null,null,9,87,1,352,"7°"]
[18,null,null,null,32,23,23,null,16,15,null,null,1,9,87]
[19,null,null,null,79,23,24,null,17,16,null,null,null,9,89]
[20,null,null,null,21,23,22,null,17,17,null,null,null,9,88]
[1,784,"X","OCPA",12,23,22,null,16,16,null,null,null,9,86,1,350,"8°"]
[2,null,null,null,10,23,22,null,16,16,null,null,null,9,86]
[3,null,null,null,32,23,23,null,17,16,null,null,null,9,88]
[4,null,null,null,6,23,23,null,17,17,null,null,null,9,89]
[13,223,"Y","OCPA",42,23,22,null,17,16,null,null,null,9,87,null,347,"9°"]
[14,null,null,null,48,23,22,null,17,17,null,null,null,9,88]
[15,null,null,null,37,23,23,null,16,15,null,null,null,9,86]
[16,null,null,null,38,23,23,null,16,15,null,null,null,9,86]
[25,747,"M","OCPA",28,23,23,null,17,16,null,null,null,9,88,null,327,"10°"]
[26,null,null,null,67,22,22,null,16,null,null,null,null,4,64]
[27,null,null,null,45,23,22,null,16,16,null,null,null,9,86]
[28,null,null,null,70,23,23,null,17,17,null,null,null,9,89]
[29,767,"N","OCPA",14,23,22,null,16,16,null,null,null,9,86,null,326,"11°"]
[30,null,null,null,21,23,23,null,16,null,null,null,null,5,67]
[31,null,null,null,7,23,22,null,16,16,null,null,null,9,86]
[32,null,null,null,16,23,23,null,16,16,null,null,null,9,87]
[5,223,"Y","OCPA",24,23,22,null,17,17,null,null,null,9,88,null,322,"12°"]
[6,null,null,null,43,23,23,null,16,10,null,null,null,8,80]
[7,null,null,null,72,22,22,null,16,null,null,null,null,4,64]
[8,null,null,null,29,23,24,null,17,17,null,null,null,9,90]

{"sheet":"Classt Serie","index":4,"n_rows":54,"n_cols":18,"rows_kept":54,"cut":false,"hidden":false,"merged":[[1,0,1,17]]}
[]
["Classe A01-015-1 SERIE"]
[]
["Cage","Stam","Eleveur","Club","Bague","R","G","TE","TP","F","B","GL","T","I","Pts",null,"Total","Classt"]
[]
[null,null,null,null,null,null,null,null,null,null,null,null,null,null,null,null,null,"CH"]
[]
[null,null,null,null,null,null,null,null,null,null,null,null,null,null,null,null,null,"2°"]
[]
[null,null,null,null,null,null,null,null,null,null,null,null,null,null,null,null,null,"3°"]
[]
[null,null,null,null,null,null,null,null,null,null,null,null,null,null,null,null,null,"4°"]
[]
[null,null,null,null,null,null,null,null,null,null,null,null,null,null,null,null,null,"5°"]
[]
[null,null,null,null,null,null,null,null,null,null,null,null,null,null,null,null,null,"6°"]
[]
[null,null,null,null,null,null,null,null,null,null,null,null,null,null,null,null,null,"7°"]
[]
[null,null,null,null,null,null,null,null,null,null,null,null,null,null,null,null,null,"8°"]
[]
[null,null,null,null,null,null,null,null,null,null,null,null,null,null,null,null,null,"9°"]
[]
[null,null,null,null,null,null,null,null,null,null,null,null,null,null,null,null,null,"10°"]
[]
[null,null,null,null,null,null,null,null,null,null,null,null,null,null,null,null,null,"11°"]
[]
[null,null,null,null,null,null,null,null,null,null,null,null,null,null,null,null,null,"12°"]
[]
[null,null,null,null,null,null,null,null,null,null,null,null,null,null,null,null,null,"13°"]
[]
[null,null,null,null,null,null,null,null,null,null,null,null,null,null,null,null,null,"14°"]
[]
[null,null,null,null,null,null,null,null,null,null,null,null,null,null,null,null,null,"15°"]
[]
[null,null,null,null,null,null,null,null,null,null,null,null,null,null,null,null,null,"16°"]
[]
[null,null,null,null,null,null,null,null,null,null,null,null,null,null,null,null,null,"17°"]
[]
[null,null,null,null,null,null,null,null,null,null,null,null,null,null,null,null,null,"18°"]
[]
[null,null,null,null,null,null,null,null,null,null,null,null,null,null,null,null,null,"19°"]
[]
[null,null,null,null,null,null,null,null,null,null,null,null,null,null,null,null,null,"20°"]
[]
[null,null,null,null,null,null,null,null,null,null,null,null,null,null,null,null,null,"21°"]
[]
[null,null,null,null,null,null,null,null,null,null,null,null,null,null,null,null,null,"22°"]
[]
[null,null,null,null,null,null,null,null,null,null,null,null,null,null,null,null,null,"23°"]
[]
[null,null,null,null,null,null,null,null,null,null,null,null,null,null,null,null,null,"24°"]
[]
[null,null,null,null,null,null,null,null,null,null,null,null,null,null,null,null,null,"25°"]

{"sheet":"Classt Ind.","index":5,"n_rows":14,"n_cols":18,"rows_kept":14,"cut":false,"hidden":false,"merged":[[1,0,1,17]]}
[]
["Classe A01-012-1 INDIVIDUEL"]
[]
["Cage","Stam","Eleveur","Club","Bague","R","G","TE","TP","F","B","GL","T","I","Pts",null,"Total","Classt"]
[]
[null,null,null,null,null,null,null,null,null,null,null,null,null,null,null,null,null,"CH"]
[null,null,null,null,null,null,null,null,null,null,null,null,null,null,null,null,null,"2°"]
[null,null,null,null,null,null,null,null,null,null,null,null,null,null,null,null,null,"3°"]
[null,null,null,null,null,null,null,null,null,null,null,null,null,null,null,null,null,"4°"]
[null,null,null,null,null,null,null,null,null,null,null,null,null,null,null,null,null,"5°"]
[null,null,null,null,null,null,null,null,null,null,null,null,null,null,null,null,null,"6°"]
[null,null,null,null,null,null,null,null,null,null,null,null,null,null,null,null,null,"7°"]
[null,null,null,null,null,null,null,null,null,null,null,null,null,null,null,null,null,"8°"]
[null,null,null,null,null,null,null,null,null,null,null,null,null,null,null,null,null,"9°"]